[Event "December 19 Early 2023"]
[Site "https://www.chess.com"]
[Date "2023.12.19"]
[Round "9"]
[White "Kravtsiv, Martyn"]
[Black "Praggnanandhaa R"]
[Result "0-1"]
[Board "6"]
[TimeControl "180+1"]
[WhiteFideId "14113147"]
[BlackFideId "25059530"]
[WhiteElo "2689"]
[BlackElo "2665"]
[WhiteTeam "UKR"]
[BlackTeam "IND"]
[WhiteClock "0:00:00"]
[BlackClock "0:00:18"]

1. e4 {[%clk 0:03:00]}  Nc6 {[%clk 0:02:57]} 2. Nf3 {[%clk 0:02:59]}  d6 {[%clk 0:02:56]} 3. d4 {[%clk 0:02:59]}  Nf6 {[%clk 0:02:56]} 4. Nc3 {[%clk 0:02:57]}  g6 {[%clk 0:02:56]} 5. d5 {[%clk 0:02:57]}  Nb8 {[%clk 0:02:56]} 6. Bg5 {[%clk 0:02:49]}  Bg7 {[%clk 0:02:56]} 7. Qd2 {[%clk 0:02:49]}  Bg4 {[%clk 0:02:49]} 8. Nd4 {[%clk 0:02:44]}  c5 {[%clk 0:02:46]} 9. Nde2 {[%clk 0:02:27]}  b5 {[%clk 0:02:42]} 10. f3 {[%clk 0:02:25]}  Bd7 {[%clk 0:02:42]} 11. Ng3 {[%clk 0:02:20]}  Qa5 {[%clk 0:02:36]} 12. Nxb5 {[%clk 0:02:14]}  Qb6 {[%clk 0:02:34]} 13. c4 {[%clk 0:02:14]}  Bxb5 {[%clk 0:02:30]} 14. cxb5 {[%clk 0:02:14]}  a6 {[%clk 0:02:30]} 15. a4 {[%clk 0:02:12]}  Qb7 {[%clk 0:02:28]} 16. bxa6 {[%clk 0:02:06]}  Nxa6 {[%clk 0:02:25]} 17. Bb5+ {[%clk 0:02:06]}  Nd7 {[%clk 0:02:20]} 18. Bc6 {[%clk 0:02:05]}  Qxb2 {[%clk 0:02:20]} 19. Qxb2 {[%clk 0:01:46]}  Bxb2 {[%clk 0:02:19]} 20. Rb1 {[%clk 0:01:46]}  Bc3+ {[%clk 0:01:37]} 21. Ke2 {[%clk 0:01:45]}  Ra7 {[%clk 0:01:38]} 22. Rhc1 {[%clk 0:01:17]}  Bb4 {[%clk 0:01:32]} 23. Bb5 {[%clk 0:01:07]}  f6 {[%clk 0:01:14]} 24. Be3 {[%clk 0:01:07]}  Kf7 {[%clk 0:01:12]} 25. Nh1 {[%clk 0:01:08]}  Ba5 {[%clk 0:00:47]} 26. Nf2 {[%clk 0:00:59]}  Nb4 {[%clk 0:00:44]} 27. f4 {[%clk 0:00:58]}  Nb6 {[%clk 0:00:34]} 28. Nd3 {[%clk 0:00:55]}  Na2 {[%clk 0:00:31]} 29. Rc2 {[%clk 0:00:30]}  Nc3+ {[%clk 0:00:30]} 30. Rxc3 {[%clk 0:00:30]}  Bxc3 {[%clk 0:00:31]} 31. Rb3 {[%clk 0:00:24]}  Bd4 {[%clk 0:00:19]} 32. Bxd4 {[%clk 0:00:20]}  cxd4 {[%clk 0:00:20]} 33. Nb4 {[%clk 0:00:20]}  Nxa4 {[%clk 0:00:20]} 34. Nc6 {[%clk 0:00:20]}  Nc5 {[%clk 0:00:20]} 35. Rb2 {[%clk 0:00:13]}  Ra3 {[%clk 0:00:19]} 36. Nxd4 {[%clk 0:00:12]}  Nxe4 {[%clk 0:00:19]} 37. Bd7 {[%clk 0:00:09]}  Rha8 {[%clk 0:00:18]} 38. Be6+ {[%clk 0:00:00]}  Kf8 {[%clk 0:00:18]} 0-1

[Event "December 19 Early 2023"]
[Site "https://www.chess.com"]
[Date "2023.12.19"]
[Round "9"]
[White "Bortnyk, Olexandr"]
[Black "Vakhlamov, Igor L."]
[Result "1-0"]
[Board "7"]
[TimeControl "180+1"]
[WhiteFideId "14120828"]
[BlackFideId "24126748"]
[WhiteElo "2731"]
[BlackElo "2407"]
[WhiteTeam "UKR"]
[BlackTeam "RUS"]
[WhiteClock "0:00:23"]
[BlackClock "0:00:00"]

1. e4 {[%clk 0:03:00]}  e6 {[%clk 0:02:50]} 2. d4 {[%clk 0:02:59]}  d5 {[%clk 0:02:51]} 3. e5 {[%clk 0:03:00]}  c5 {[%clk 0:02:50]} 4. Nf3 {[%clk 0:03:00]}  Nc6 {[%clk 0:02:50]} 5. Bd3 {[%clk 0:03:00]}  cxd4 {[%clk 0:02:45]} 6. O-O {[%clk 0:03:00]}  Nge7 {[%clk 0:02:45]} 7. Bf4 {[%clk 0:02:59]}  Ng6 {[%clk 0:02:41]} 8. Bg3 {[%clk 0:03:00]}  Be7 {[%clk 0:02:38]} 9. Re1 {[%clk 0:02:56]}  Bd7 {[%clk 0:02:37]} 10. Nbd2 {[%clk 0:02:56]}  Rc8 {[%clk 0:02:35]} 11. Nb3 {[%clk 0:02:56]}  Nb4 {[%clk 0:02:33]} 12. Nbxd4 {[%clk 0:02:52]}  Nxd3 {[%clk 0:02:32]} 13. Qxd3 {[%clk 0:02:48]}  O-O {[%clk 0:02:31]} 14. c3 {[%clk 0:02:35]}  a6 {[%clk 0:02:30]} 15. a4 {[%clk 0:02:33]}  Rc4 {[%clk 0:02:15]} 16. a5 {[%clk 0:02:28]}  Rc5 {[%clk 0:01:46]} 17. b4 {[%clk 0:02:23]}  Rc7 {[%clk 0:01:46]} 18. Qe3 {[%clk 0:02:18]}  h6 {[%clk 0:01:35]} 19. Ra3 {[%clk 0:02:14]}  Rc4 {[%clk 0:01:15]} 20. Nd2 {[%clk 0:02:12]}  Rc8 {[%clk 0:01:13]} 21. f4 {[%clk 0:02:12]}  Qc7 {[%clk 0:01:02]} 22. f5 {[%clk 0:01:59]}  exf5 {[%clk 0:00:32]} 23. e6 {[%clk 0:02:00]}  f4 {[%clk 0:00:32]} 24. Bxf4 {[%clk 0:01:58]}  Nxf4 {[%clk 0:00:14]} 25. exd7 {[%clk 0:01:58]}  Qxd7 {[%clk 0:00:05]} 26. Qxf4 {[%clk 0:01:43]}  Bg5 {[%clk 0:00:05]} 27. Qf2 {[%clk 0:01:43]}  Rfe8 {[%clk 0:00:06]} 28. N2f3 {[%clk 0:01:28]}  Rxe1+ {[%clk 0:00:05]} 29. Qxe1 {[%clk 0:01:28]}  Re8 {[%clk 0:00:06]} 30. Qg3 {[%clk 0:01:27]}  Be3+ {[%clk 0:00:05]} 31. Kh1 {[%clk 0:01:24]}  Qc8 {[%clk 0:00:02]} 32. h4 {[%clk 0:01:17]}  g6 {[%clk 0:00:02]} 33. Ra1 {[%clk 0:00:58]}  Qxc3 {[%clk 0:00:01]} 34. Re1 {[%clk 0:00:59]}  h5 {[%clk 0:00:01]} 35. b5 {[%clk 0:00:44]}  Re4 {[%clk 0:00:02]} 36. Nf5 {[%clk 0:00:40]}  Bf4 {[%clk 0:00:00]} 37. Rxe4 {[%clk 0:00:23]} 1-0

[Event "December 19 Early 2023"]
[Site "https://www.chess.com"]
[Date "2023.12.19"]
[Round "9"]
[White "Popov, Konstantin"]
[Black "IM_ArthurDW08"]
[Result "1/2-1/2"]
[Board "9"]
[TimeControl "180+1"]
[WhiteFideId "34137910"]
[WhiteElo "2340"]
[BlackElo "2790"]
[WhiteTeam "FID"]
[WhiteClock "0:00:05"]
[BlackClock "0:01:02"]

1. e4 {[%clk 0:03:00]}  c5 {[%clk 0:02:59]} 2. Nf3 {[%clk 0:03:00]}  Nc6 {[%clk 0:02:56]} 3. d4 {[%clk 0:03:00]}  cxd4 {[%clk 0:02:57]} 4. Nxd4 {[%clk 0:03:01]}  Qb6 {[%clk 0:02:58]} 5. Nb3 {[%clk 0:03:00]}  Nf6 {[%clk 0:02:58]} 6. Nc3 {[%clk 0:03:00]}  e6 {[%clk 0:02:57]} 7. Qe2 {[%clk 0:03:00]}  d6 {[%clk 0:02:47]} 8. g3 {[%clk 0:02:59]}  a6 {[%clk 0:02:45]} 9. Bg2 {[%clk 0:02:58]}  Be7 {[%clk 0:02:45]} 10. O-O {[%clk 0:02:57]}  O-O {[%clk 0:02:43]} 11. Be3 {[%clk 0:02:56]}  Qc7 {[%clk 0:02:43]} 12. a4 {[%clk 0:02:57]}  Bd7 {[%clk 0:02:40]} 13. a5 {[%clk 0:02:56]}  Ne5 {[%clk 0:02:36]} 14. Bb6 {[%clk 0:02:50]}  Qc4 {[%clk 0:02:35]} 15. Qd2 {[%clk 0:02:43]}  Qb4 {[%clk 0:02:32]} 16. Nd5 {[%clk 0:02:33]}  Nxd5 {[%clk 0:02:24]} 17. exd5 {[%clk 0:02:33]}  Qg4 {[%clk 0:02:11]} 18. Nd4 {[%clk 0:01:52]}  Nc4 {[%clk 0:02:07]} 19. Qd3 {[%clk 0:01:50]}  Nxb6 {[%clk 0:02:07]} 20. dxe6 {[%clk 0:01:50]}  fxe6 {[%clk 0:01:56]} 21. axb6 {[%clk 0:01:50]}  e5 {[%clk 0:01:56]} 22. Nb3 {[%clk 0:01:46]}  Bb5 {[%clk 0:01:53]} 23. Qd5+ {[%clk 0:01:46]}  Kh8 {[%clk 0:01:52]} 24. Qxb7 {[%clk 0:01:46]}  Bxf1 {[%clk 0:01:51]} 25. Rxf1 {[%clk 0:01:44]}  Bf6 {[%clk 0:01:47]} 26. Qxa8 {[%clk 0:01:41]}  Rxa8 {[%clk 0:01:46]} 27. Bxa8 {[%clk 0:01:42]}  Qb4 {[%clk 0:01:30]} 28. b7 {[%clk 0:01:31]}  e4 {[%clk 0:01:25]} 29. Na5 {[%clk 0:01:27]}  e3 {[%clk 0:01:16]} 30. Nc6 {[%clk 0:01:09]}  exf2+ {[%clk 0:01:16]} 31. Rxf2 {[%clk 0:01:08]}  Qe1+ {[%clk 0:01:16]} 32. Kg2 {[%clk 0:01:07]}  Qe4+ {[%clk 0:01:16]} 33. Rf3 {[%clk 0:01:02]}  Qe2+ {[%clk 0:01:15]} 34. Kh3 {[%clk 0:01:01]}  Qe6+ {[%clk 0:01:10]} 35. g4 {[%clk 0:00:33]}  h5 {[%clk 0:01:10]} 36. b8=Q+ {[%clk 0:00:31]}  Kh7 {[%clk 0:01:10]} 37. Ne5 {[%clk 0:00:29]}  Bxe5 {[%clk 0:01:09]} 38. Be4+ {[%clk 0:00:28]}  g6 {[%clk 0:01:08]} 39. Bf5 {[%clk 0:00:13]}  gxf5 {[%clk 0:01:05]} 40. Qb7+ {[%clk 0:00:13]}  Kh6 {[%clk 0:01:03]} 41. gxf5 {[%clk 0:00:14]}  Qc4 {[%clk 0:01:01]} 42. Kg2 {[%clk 0:00:05]}  Qe2+ {[%clk 0:01:01]} 43. Rf2 {[%clk 0:00:05]}  Qg4+ {[%clk 0:01:01]} 44. Kf1 {[%clk 0:00:05]}  Qd1+ {[%clk 0:01:02]} 45. Kg2 {[%clk 0:00:06]}  Qg4+ {[%clk 0:01:03]} 46. Kf1 {[%clk 0:00:04]}  Qd1+ {[%clk 0:01:01]} 47. Kg2 {[%clk 0:00:05]}  Qg4+ {[%clk 0:01:02]} 1/2-1/2

[Event "December 19 Early 2023"]
[Site "https://www.chess.com"]
[Date "2023.12.19"]
[Round "9"]
[White "Agibileg, Uurtsaikh"]
[Black "Maksimovic, Bojan"]
[Result "0-1"]
[Board "10"]
[TimeControl "180+1"]
[WhiteFideId "4901606"]
[BlackFideId "14408120"]
[WhiteElo "2288"]
[BlackElo "2527"]
[WhiteTeam "MGL"]
[BlackTeam "BIH"]
[WhiteClock "0:00:00"]
[BlackClock "0:00:10"]

1. d4 {[%clk 0:03:00]}  g6 {[%clk 0:02:58]} 2. c4 {[%clk 0:03:00]}  Bg7 {[%clk 0:02:58]} 3. e4 {[%clk 0:03:00]}  d6 {[%clk 0:02:58]} 4. Nc3 {[%clk 0:02:58]}  e5 {[%clk 0:02:58]} 5. d5 {[%clk 0:02:55]}  a5 {[%clk 0:02:58]} 6. g4 {[%clk 0:02:45]}  Na6 {[%clk 0:02:56]} 7. h4 {[%clk 0:02:42]}  Nf6 {[%clk 0:02:42]} 8. Be2 {[%clk 0:02:39]}  Nc5 {[%clk 0:02:40]} 9. f3 {[%clk 0:02:39]}  h5 {[%clk 0:02:39]} 10. g5 {[%clk 0:02:39]}  Nh7 {[%clk 0:02:39]} 11. Be3 {[%clk 0:02:36]}  O-O {[%clk 0:02:37]} 12. Nh3 {[%clk 0:02:35]}  Bxh3 {[%clk 0:02:36]} 13. Rxh3 {[%clk 0:02:34]}  f6 {[%clk 0:02:37]} 14. Qd2 {[%clk 0:02:33]}  fxg5 {[%clk 0:02:36]} 15. hxg5 {[%clk 0:02:34]}  b6 {[%clk 0:02:35]} 16. O-O-O {[%clk 0:02:33]}  Qe7 {[%clk 0:02:35]} 17. Kb1 {[%clk 0:02:30]}  Rf7 {[%clk 0:02:35]} 18. Rg1 {[%clk 0:01:59]}  Raf8 {[%clk 0:02:31]} 19. Nb5 {[%clk 0:01:54]}  Rf4 {[%clk 0:02:28]} 20. Bxf4 {[%clk 0:01:52]}  exf4 {[%clk 0:02:29]} 21. Nd4 {[%clk 0:01:49]}  Be5 {[%clk 0:02:26]} 22. Rh2 {[%clk 0:01:39]}  Qg7 {[%clk 0:02:24]} 23. Ne6 {[%clk 0:01:38]}  Nxe6 {[%clk 0:02:24]} 24. dxe6 {[%clk 0:01:39]}  Qe7 {[%clk 0:02:24]} 25. Qd5 {[%clk 0:01:32]}  Kg7 {[%clk 0:02:22]} 26. Bd1 {[%clk 0:01:27]}  Rd8 {[%clk 0:01:48]} 27. Ba4 {[%clk 0:01:27]}  Nf8 {[%clk 0:01:49]} 28. Bd7 {[%clk 0:01:14]}  Nxd7 {[%clk 0:01:49]} 29. exd7 {[%clk 0:01:15]}  Qxd7 {[%clk 0:01:49]} 30. Qd1 {[%clk 0:00:48]}  Qe6 {[%clk 0:01:45]} 31. Qd5 {[%clk 0:00:48]}  Qe7 {[%clk 0:01:45]} 32. Qc6 {[%clk 0:00:47]}  Re8 {[%clk 0:01:43]} 33. Qd5 {[%clk 0:00:46]}  Qd7 {[%clk 0:01:38]} 34. Qd1 {[%clk 0:00:44]}  c6 {[%clk 0:01:36]} 35. Qd3 {[%clk 0:00:43]}  Qe7 {[%clk 0:01:34]} 36. Qd1 {[%clk 0:00:42]}  Rb8 {[%clk 0:01:33]} 37. Qa4 {[%clk 0:00:40]}  b5 {[%clk 0:01:33]} 38. Qxa5 {[%clk 0:00:30]}  bxc4 {[%clk 0:01:31]} 39. Rd1 {[%clk 0:00:25]}  c3 {[%clk 0:01:17]} 40. b3 {[%clk 0:00:24]}  c5 {[%clk 0:01:17]} 41. Qa6 {[%clk 0:00:22]}  Qc7 {[%clk 0:01:09]} 42. Qc4 {[%clk 0:00:20]}  Rb4 {[%clk 0:01:07]} 43. Qe6 {[%clk 0:00:18]}  c4 {[%clk 0:01:06]} 44. Kc2 {[%clk 0:00:08]}  Qa7 {[%clk 0:00:53]} 45. Ra1 {[%clk 0:00:04]}  Kh7 {[%clk 0:00:18]} 46. Rxh5+ {[%clk 0:00:02]}  gxh5 {[%clk 0:00:19]} 47. Qh6+ {[%clk 0:00:03]}  Kg8 {[%clk 0:00:19]} 48. Qg6+ {[%clk 0:00:03]}  Kf8 {[%clk 0:00:19]} 49. Qh6+ {[%clk 0:00:03]}  Ke8 {[%clk 0:00:11]} 50. Qxh5+ {[%clk 0:00:03]}  Kd8 {[%clk 0:00:11]} 51. Kc1 {[%clk 0:00:01]}  Qg1+ {[%clk 0:00:10]} 52. Kc2 {[%clk 0:00:00]}  Qf2+ {[%clk 0:00:10]} 0-1

[Event "December 19 Early 2023"]
[Site "https://www.chess.com"]
[Date "2023.12.19"]
[Round "9"]
[White "Le, Tuan Minh"]
[Black "Krzyzanowski, Marcin"]
[Result "1-0"]
[Board "11"]
[TimeControl "180+1"]
[WhiteFideId "12401153"]
[BlackFideId "1132199"]
[WhiteElo "2561"]
[BlackElo "2471"]
[WhiteTeam "VIE"]
[BlackTeam "POL"]
[WhiteClock "0:00:09"]
[BlackClock "0:00:03"]

1. d4 {[%clk 0:02:53]}  Nf6 {[%clk 0:02:59]} 2. c4 {[%clk 0:02:52]}  e6 {[%clk 0:03:00]} 3. Nc3 {[%clk 0:02:52]}  Bb4 {[%clk 0:03:00]} 4. e3 {[%clk 0:02:53]}  O-O {[%clk 0:02:59]} 5. Bd2 {[%clk 0:02:53]}  b6 {[%clk 0:02:58]} 6. a3 {[%clk 0:02:51]}  Bxc3 {[%clk 0:02:48]} 7. Bxc3 {[%clk 0:02:52]}  Ne4 {[%clk 0:02:49]} 8. Ne2 {[%clk 0:02:51]}  Bb7 {[%clk 0:02:48]} 9. d5 {[%clk 0:02:24]}  exd5 {[%clk 0:02:03]} 10. cxd5 {[%clk 0:02:22]}  Qg5 {[%clk 0:01:52]} 11. Nf4 {[%clk 0:02:01]}  Nxc3 {[%clk 0:01:52]} 12. bxc3 {[%clk 0:02:02]}  Re8 {[%clk 0:01:51]} 13. Be2 {[%clk 0:02:00]}  Na6 {[%clk 0:01:51]} 14. O-O {[%clk 0:01:57]}  Nc5 {[%clk 0:01:51]} 15. c4 {[%clk 0:01:58]}  d6 {[%clk 0:01:40]} 16. g3 {[%clk 0:01:46]}  Re4 {[%clk 0:01:35]} 17. Rc1 {[%clk 0:01:44]}  Rae8 {[%clk 0:01:35]} 18. Bf3 {[%clk 0:01:44]}  R4e7 {[%clk 0:01:34]} 19. Qc2 {[%clk 0:01:42]}  Bc8 {[%clk 0:01:33]} 20. Rfd1 {[%clk 0:01:41]}  g6 {[%clk 0:01:29]} 21. Bg2 {[%clk 0:01:37]}  Bg4 {[%clk 0:01:28]} 22. Re1 {[%clk 0:01:30]}  Bf5 {[%clk 0:01:26]} 23. Qc3 {[%clk 0:01:29]}  Be4 {[%clk 0:01:26]} 24. f3 {[%clk 0:01:26]}  Bf5 {[%clk 0:01:26]} 25. e4 {[%clk 0:01:26]}  Bd7 {[%clk 0:01:26]} 26. Bh3 {[%clk 0:00:54]}  h5 {[%clk 0:01:09]} 27. Bxd7 {[%clk 0:00:50]}  Nxd7 {[%clk 0:01:10]} 28. Kg2 {[%clk 0:00:50]}  Nc5 {[%clk 0:01:02]} 29. h4 {[%clk 0:00:41]}  Qe5 {[%clk 0:01:00]} 30. Qxe5 {[%clk 0:00:41]}  Rxe5 {[%clk 0:01:01]} 31. Red1 {[%clk 0:00:41]}  Kg7 {[%clk 0:01:01]} 32. Rc3 {[%clk 0:00:36]}  a5 {[%clk 0:01:01]} 33. Rc2 {[%clk 0:00:21]}  R8e7 {[%clk 0:01:01]} 34. Kf2 {[%clk 0:00:21]}  f6 {[%clk 0:01:01]} 35. Rb1 {[%clk 0:00:20]}  Nd7 {[%clk 0:00:59]} 36. Rg1 {[%clk 0:00:20]}  Nc5 {[%clk 0:00:59]} 37. g4 {[%clk 0:00:20]}  hxg4 {[%clk 0:00:57]} 38. Rxg4 {[%clk 0:00:21]}  g5 {[%clk 0:00:57]} 39. hxg5 {[%clk 0:00:20]}  fxg5 {[%clk 0:00:56]} 40. Ke3 {[%clk 0:00:18]}  Kf6 {[%clk 0:00:52]} 41. Nh5+ {[%clk 0:00:15]}  Kg6 {[%clk 0:00:52]} 42. Rh2 {[%clk 0:00:14]}  Kf7 {[%clk 0:00:39]} 43. Rhg2 {[%clk 0:00:11]}  b5 {[%clk 0:00:33]} 44. Rxg5 {[%clk 0:00:08]}  Rxg5 {[%clk 0:00:33]} 45. Rxg5 {[%clk 0:00:09]}  bxc4 {[%clk 0:00:34]} 46. Rg7+ {[%clk 0:00:07]}  Kf8 {[%clk 0:00:33]} 47. Rxe7 {[%clk 0:00:07]}  Kxe7 {[%clk 0:00:34]} 48. Nf4 {[%clk 0:00:08]}  Nb3 {[%clk 0:00:27]} 49. Ne2 {[%clk 0:00:07]}  Kd7 {[%clk 0:00:22]} 50. Nd4 {[%clk 0:00:07]}  a4 {[%clk 0:00:20]} 51. f4 {[%clk 0:00:05]}  c3 {[%clk 0:00:12]} 52. Nc2 {[%clk 0:00:06]}  Nd2 {[%clk 0:00:05]} 53. Kd3 {[%clk 0:00:05]}  c5 {[%clk 0:00:03]} 54. dxc6+ {[%clk 0:00:04]}  Kxc6 {[%clk 0:00:04]} 55. f5 {[%clk 0:00:02]}  Kd7 {[%clk 0:00:04]} 56. Ne3 {[%clk 0:00:02]}  Nb1 {[%clk 0:00:02]} 57. Nc4 {[%clk 0:00:02]}  Ke7 {[%clk 0:00:03]} 58. Kc2 {[%clk 0:00:02]}  d5 {[%clk 0:00:02]} 59. exd5 {[%clk 0:00:02]}  Nd2 {[%clk 0:00:02]} 60. Nxd2 {[%clk 0:00:02]}  cxd2 {[%clk 0:00:02]} 61. Kxd2 {[%clk 0:00:03]}  Kf6 {[%clk 0:00:02]} 62. d6 {[%clk 0:00:04]}  Kf7 {[%clk 0:00:02]} 63. Kc3 {[%clk 0:00:04]}  Kf6 {[%clk 0:00:02]} 64. Kb4 {[%clk 0:00:05]}  Ke5 {[%clk 0:00:02]} 65. d7 {[%clk 0:00:05]}  Kd5 {[%clk 0:00:02]} 66. d8=Q+ {[%clk 0:00:06]}  Kc6 {[%clk 0:00:03]} 67. f6 {[%clk 0:00:07]}  Kb7 {[%clk 0:00:03]} 68. f7 {[%clk 0:00:07]}  Ka6 {[%clk 0:00:03]} 69. f8=Q {[%clk 0:00:08]}  Kb7 {[%clk 0:00:04]} 70. Qfe7+ {[%clk 0:00:08]}  Kc6 {[%clk 0:00:03]} 71. Qdd6# {[%clk 0:00:09]} 1-0

[Event "December 19 Early 2023"]
[Site "https://www.chess.com"]
[Date "2023.12.19"]
[Round "9"]
[White "Sarana, Alexey"]
[Black "Yeletsky, Ivan"]
[Result "1-0"]
[Board "16"]
[TimeControl "180+1"]
[WhiteFideId "24133795"]
[BlackFideId "24180327"]
[WhiteElo "2707"]
[BlackElo "2379"]
[WhiteTeam "SRB"]
[BlackTeam "RUS"]
[WhiteClock "0:00:21"]
[BlackClock "0:00:00"]

1. d4 {[%clk 0:02:57]}  d5 {[%clk 0:03:00]} 2. c4 {[%clk 0:02:57]}  e6 {[%clk 0:03:00]} 3. Nc3 {[%clk 0:02:58]}  a6 {[%clk 0:03:00]} 4. cxd5 {[%clk 0:02:56]}  exd5 {[%clk 0:03:01]} 5. Nf3 {[%clk 0:02:55]}  c6 {[%clk 0:03:00]} 6. Bf4 {[%clk 0:02:43]}  Bd6 {[%clk 0:02:59]} 7. Bxd6 {[%clk 0:02:43]}  Qxd6 {[%clk 0:02:59]} 8. e3 {[%clk 0:02:40]}  Ne7 {[%clk 0:02:39]} 9. Bd3 {[%clk 0:02:40]}  Bf5 {[%clk 0:02:39]} 10. Qb3 {[%clk 0:02:41]}  Bxd3 {[%clk 0:02:19]} 11. Qxb7 {[%clk 0:02:40]}  O-O {[%clk 0:02:20]} 12. Qxa8 {[%clk 0:02:40]}  Qc7 {[%clk 0:01:28]} 13. Ne5 {[%clk 0:02:41]}  Nc8 {[%clk 0:01:18]} 14. Nxd5 {[%clk 0:01:19]}  cxd5 {[%clk 0:01:07]} 15. Qxd5 {[%clk 0:01:20]}  Bb5 {[%clk 0:01:03]} 16. Qc5 {[%clk 0:01:11]}  Qa5+ {[%clk 0:01:00]} 17. Qc3 {[%clk 0:01:11]}  Qa4 {[%clk 0:00:52]} 18. a3 {[%clk 0:01:11]}  Nc6 {[%clk 0:00:39]} 19. b3 {[%clk 0:00:50]}  Qa5 {[%clk 0:00:40]} 20. Qxa5 {[%clk 0:00:50]}  Nxa5 {[%clk 0:00:40]} 21. a4 {[%clk 0:00:51]}  Be8 {[%clk 0:00:38]} 22. b4 {[%clk 0:00:51]}  Nb7 {[%clk 0:00:29]} 23. O-O {[%clk 0:00:50]}  f6 {[%clk 0:00:30]} 24. Nd3 {[%clk 0:00:49]}  Nb6 {[%clk 0:00:28]} 25. Rfc1 {[%clk 0:00:29]}  Nxa4 {[%clk 0:00:25]} 26. Rc7 {[%clk 0:00:30]}  Nd6 {[%clk 0:00:24]} 27. Nc5 {[%clk 0:00:30]}  Nb5 {[%clk 0:00:17]} 28. Rc8 {[%clk 0:00:26]}  Nb6 {[%clk 0:00:08]} 29. Rb8 {[%clk 0:00:26]}  Nd7 {[%clk 0:00:07]} 30. Rxe8 {[%clk 0:00:23]}  Rxe8 {[%clk 0:00:08]} 31. Nxd7 {[%clk 0:00:23]}  h5 {[%clk 0:00:04]} 32. g3 {[%clk 0:00:23]}  h4 {[%clk 0:00:03]} 33. Kg2 {[%clk 0:00:21]}  hxg3 {[%clk 0:00:04]} 34. hxg3 {[%clk 0:00:22]}  Nc3 {[%clk 0:00:04]} 35. Rxa6 {[%clk 0:00:21]}  Re7 {[%clk 0:00:04]} 36. Nc5 {[%clk 0:00:21]}  Re8 {[%clk 0:00:03]} 37. Ra7 {[%clk 0:00:20]}  Rb8 {[%clk 0:00:03]} 38. Ne6 {[%clk 0:00:21]}  Rxb4 {[%clk 0:00:03]} 39. Rxg7+ {[%clk 0:00:21]}  Kh8 {[%clk 0:00:04]} 40. Rf7 {[%clk 0:00:22]}  Ne4 {[%clk 0:00:00]} 41. Nc5 {[%clk 0:00:21]} 1-0

[Event "December 19 Early 2023"]
[Site "https://www.chess.com"]
[Date "2023.12.19"]
[Round "9"]
[White "Terry, Renato"]
[Black "Garcia Ramos, Daniel"]
[Result "1-0"]
[Board "17"]
[TimeControl "180+1"]
[WhiteFideId "3803457"]
[BlackFideId "32010311"]
[WhiteElo "2578"]
[BlackElo "2363"]
[WhiteTeam "PER"]
[BlackTeam "ESP"]
[WhiteClock "0:01:15"]
[BlackClock "0:00:01"]

1. Nf3 {[%clk 0:03:00]}  Nf6 {[%clk 0:02:59]} 2. d4 {[%clk 0:03:00]}  e6 {[%clk 0:02:59]} 3. c4 {[%clk 0:03:00]}  d5 {[%clk 0:03:00]} 4. e3 {[%clk 0:03:00]}  Be7 {[%clk 0:02:58]} 5. b3 {[%clk 0:02:59]}  O-O {[%clk 0:02:58]} 6. Bb2 {[%clk 0:02:59]}  c5 {[%clk 0:02:59]} 7. dxc5 {[%clk 0:02:59]}  Bxc5 {[%clk 0:02:57]} 8. a3 {[%clk 0:02:59]}  Nc6 {[%clk 0:02:53]} 9. b4 {[%clk 0:02:55]}  Be7 {[%clk 0:02:54]} 10. Nbd2 {[%clk 0:02:55]}  b6 {[%clk 0:02:46]} 11. Rc1 {[%clk 0:02:55]}  Bb7 {[%clk 0:02:46]} 12. Be2 {[%clk 0:02:54]}  Rc8 {[%clk 0:02:46]} 13. O-O {[%clk 0:02:54]}  Ne4 {[%clk 0:02:32]} 14. cxd5 {[%clk 0:02:48]}  exd5 {[%clk 0:02:32]} 15. Nb3 {[%clk 0:02:45]}  Bf6 {[%clk 0:02:29]} 16. Nbd4 {[%clk 0:02:44]}  Qd6 {[%clk 0:02:09]} 17. Qa4 {[%clk 0:02:35]}  Nxd4 {[%clk 0:02:02]} 18. Nxd4 {[%clk 0:02:36]}  a6 {[%clk 0:01:37]} 19. Bxa6 {[%clk 0:02:12]}  Ra8 {[%clk 0:01:36]} 20. b5 {[%clk 0:02:13]}  Nc5 {[%clk 0:01:34]} 21. Qb4 {[%clk 0:02:13]}  Bxa6 {[%clk 0:01:31]} 22. bxa6 {[%clk 0:02:13]}  Rxa6 {[%clk 0:01:32]} 23. Rfd1 {[%clk 0:02:14]}  Ra4 {[%clk 0:01:25]} 24. Qb5 {[%clk 0:02:10]}  Ra5 {[%clk 0:01:15]} 25. Qe2 {[%clk 0:02:10]}  Re8 {[%clk 0:01:03]} 26. Bc3 {[%clk 0:02:05]}  Ra4 {[%clk 0:00:55]} 27. Bb4 {[%clk 0:02:04]}  Bxd4 {[%clk 0:00:43]} 28. Rxd4 {[%clk 0:02:05]}  Raa8 {[%clk 0:00:36]} 29. Rcd1 {[%clk 0:01:54]}  Rad8 {[%clk 0:00:36]} 30. Qf3 {[%clk 0:01:54]}  Re5 {[%clk 0:00:29]} 31. e4 {[%clk 0:01:51]}  Qe6 {[%clk 0:00:09]} 32. exd5 {[%clk 0:01:47]}  Qd6 {[%clk 0:00:08]} 33. g3 {[%clk 0:01:40]}  Rde8 {[%clk 0:00:08]} 34. Rf4 {[%clk 0:01:35]}  Qd7 {[%clk 0:00:05]} 35. Bc3 {[%clk 0:01:25]}  Re2 {[%clk 0:00:03]} 36. Rg4 {[%clk 0:01:20]}  f5 {[%clk 0:00:02]} 37. Rxg7+ {[%clk 0:01:20]}  Qxg7 {[%clk 0:00:02]} 38. Bxg7 {[%clk 0:01:21]}  Kxg7 {[%clk 0:00:02]} 39. d6 {[%clk 0:01:21]}  Re1+ {[%clk 0:00:01]} 40. Rxe1 {[%clk 0:01:19]}  Rxe1+ {[%clk 0:00:02]} 41. Kg2 {[%clk 0:01:20]}  Re6 {[%clk 0:00:02]} 42. Qd5 {[%clk 0:01:16]}  Kf6 {[%clk 0:00:01]} 43. d7 {[%clk 0:01:15]} 1-0